bitfinex-derivatives/quotes_BTCF0:USTF0_20251207
["timestamp","ask_amount","ask_price","bid_price","bid_amount"]
[1765125621788,0.41801,89522.0,89521.0,0.06731752]
[1765125622588,0.41801,89522.0,89521.0,0.06531752]
[1765125622886,0.41801,89522.0,89521.0,0.06731752]
[1765125627000,0.05721,89522.0,89521.0,0.06731752]
[1765125627385,0.05721,89522.0,89521.0,0.07848712]
[1765125627595,0.02957,89522.0,89521.0,0.07848712]
[1765125628797,0.05721,89522.0,89521.0,0.07848712]
[1765125631393,0.05721,89522.0,89521.0,0.11838555]
[1765125632096,0.05721,89522.0,89521.0,0.07848712]
[1765125636298,0.05721,89522.0,89521.0,0.06731752]
[1765125637998,0.41801,89522.0,89521.0,0.06731752]
[1765125639801,0.41801,89522.0,89521.0,0.00816752]
[1765125640698,0.41801,89522.0,89508.0,0.05986802]
[1765125640699,0.05721,89516.0,89508.0,0.05986802]
[1765125640998,0.05721,89516.0,89481.0,0.13900135]
[1765125640999,0.0111735,89490.0,89487.0,8.752e-05]
[1765125641188,0.7216,89488.0,89487.0,8.752e-05]
[1765125641388,0.9416,89488.0,89487.0,8.752e-05]
[1765125641590,0.9667941,89488.0,89487.0,8.752e-05]
[1765125641797,1.4556732,89488.0,89487.0,8.752e-05]
[1765125641992,0.0111747,89480.0,89479.0,0.00016762]
[1765125642300,0.5919747,89480.0,89479.0,0.00016762]
[1765125642489,0.6171688,89480.0,89479.0,0.00016762]
[1765125642893,0.61725072,89480.0,89479.0,0.00016762]
[1765125643794,0.61725072,89480.0,89479.0,0.00116762]
[1765125646103,0.0111764,89467.0,89460.0,0.01738]
[1765125646293,0.59206378,89467.0,89460.0,0.01738]
[1765125646689,0.6187722,89467.0,89460.0,0.01738]
[1765125647505,0.6187722,89467.0,89466.0,0.01938]
[1765125647698,0.6187722,89467.0,89466.0,0.02038]
[1765125648398,0.59206378,89467.0,89466.0,0.02038]
[1765125648700,0.6187552,89467.0,89466.0,0.003]
[1765125649402,0.59206378,89467.0,89466.0,0.003]
[1765125650498,1.11206378,89467.0,89466.0,0.003]
[1765125653196,1.11206378,89467.0,89466.0,0.05194]
[1765125653900,1.11206378,89467.0,89466.0,0.003]
[1765125656704,0.59206378,89467.0,89466.0,0.09964]
[1765125656905,1.11202378,89467.0,89466.0,0.21945455]
[1765125657203,1.11198378,89467.0,89466.0,0.21945455]
[1765125657402,0.59206378,89467.0,89466.0,0.21945455]
[1765125657603,1.11198378,89467.0,89466.0,0.21945455]
[1765125659806,0.89206378,89467.0,89466.0,0.21945455]
[1765125660207,1.11206378,89467.0,89466.0,0.21945455]
[1765125660408,0.37206378,89467.0,89466.0,0.21945455]
[1765125660605,0.36088738,89467.0,89466.0,0.21945455]
[1765125662408,0.58088738,89467.0,89466.0,0.17175455]
[1765125662909,0.58088738,89467.0,89466.0,0.12281455]
[1765125663100,0.60750636,89467.0,89466.0,0.12281455]
[1765125664608,0.60750636,89467.0,89466.0,0.12081455]
[1765125664910,0.60750636,89467.0,89466.0,5e-08]
[1765125664911,1.00750215,89467.0,89466.0,5e-08]
[1765125665095,1.1275065,89467.0,89466.0,5e-08]
[1765125667011,1.1275065,89467.0,89458.0,0.00016762]
[1765125667210,0.3608,89459.0,89458.0,0.00016762]
[1765125667511,0.6075065,89459.0,89458.0,0.00016762]
[1765125667698,0.6186839,89459.0,89458.0,0.00016762]
[1765125668714,0.6186839,89459.0,89458.0,0.09393762]
[1765125668909,1.20755324,89459.0,89458.0,0.09493762]
[1765125669108,1.1497239,89459.0,89458.0,0.09493762]
[1765125669315,1.1497239,89459.0,89458.0,0.04723762]
[1765125669511,0.72122016,89459.0,89458.0,0.00116762]
[1765125669711,1.24126016,89459.0,89458.0,0.00116762]
[1765125670114,1.24126016,89459.0,89458.0,0.04723762]
[1765125670611,1.24126016,89459.0,89458.0,0.09493762]
[1765125670818,1.32129469,89459.0,89458.0,0.09493762]
[1765125671116,1.32132424,89459.0,89458.0,0.09493762]
[1765125671315,1.24126016,89459.0,89458.0,0.09493762]
[1765125671718,0.72122016,89459.0,89458.0,0.09493762]
[1765125671921,1.24130016,89459.0,89458.0,0.09493762]
[1765125672309,0.6185065,89459.0,89458.0,0.09493762]
[1765125672716,0.3985065,89459.0,89458.0,0.09493762]
[1765125672915,0.45869706,89459.0,89458.0,0.09493762]
[1765125673517,0.3985065,89459.0,89458.0,0.09493762]
[1765125679538,0.0377065,89459.0,89458.0,0.09493762]
[1765125683039,0.0111755,89474.0,89467.0,0.02764]
[1765125683239,0.02550087,89473.0,89472.0,0.10282]
[1765125684233,0.3608,89484.0,89483.0,0.10282]
[1765125684437,0.3608,89484.0,89483.0,0.1139944]
[1765125685541,0.3608,89484.0,89483.0,0.1149944]
[1765125685542,0.3678,89484.0,89483.0,0.1149944]
[1765125687043,0.3608,89484.0,89483.0,0.1169944]
[1765125687346,0.3608,89484.0,89483.0,0.1179944]
[1765125687843,0.00016762,89492.0,89491.0,0.10282]
[1765125687844,0.36096762,89492.0,89491.0,0.10282]
[1765125689547,0.36196762,89492.0,89491.0,0.10282]
[1765125696359,0.37314082,89492.0,89491.0,0.10282]
[1765125698063,0.37314082,89492.0,89491.0,0.05212]
[1765125698558,0.37314082,89492.0,89491.0,0.10282]
[1765125700257,0.00116762,89492.0,89491.0,0.39282]
[1765125700456,0.00116762,89492.0,89491.0,0.10282]
[1765125701358,0.59314082,89492.0,89491.0,0.10282]
[1765125702846,0.59314082,89492.0,89488.0,0.02764]
[1765125703265,0.59314082,89492.0,89488.0,0.13575]
[1765125704162,0.59314082,89492.0,89488.0,0.13675]
[1765125704351,0.59214082,89492.0,89488.0,0.13675]
[1765125704663,0.59314082,89492.0,89488.0,0.13675]
[1765125705458,0.0111735,89490.0,89488.0,0.13675]
[1765125705660,0.02520129,89489.0,89488.0,0.13675]
[1765125706557,0.02520129,89489.0,89488.0,0.13575]
[1765125706558,0.02520918,89489.0,89488.0,0.13575]
[1765125706758,0.02520918,89489.0,89488.0,0.13675]
[1765125707157,0.02520918,89489.0,89488.0,0.13575]
[1765125707358,0.02520918,89489.0,89488.0,0.13675]
[1765125708365,0.02620918,89489.0,89488.0,0.13675]
[1765125708561,0.02620918,89489.0,89488.0,0.02864]
[1765125708761,0.24620918,89489.0,89488.0,0.001]
[1765125710757,0.24620918,89489.0,89488.0,0.03156]
[1765125712266,0.24620918,89489.0,89488.0,0.001]
[1765125715874,0.24620918,89489.0,89488.0,0.14183]
[1765125718177,0.24620918,89489.0,89488.0,0.08768]
[1765125718366,0.24620918,89489.0,89488.0,0.001]
[1765125720472,0.76604918,89489.0,89488.0,0.0334]
[1765125720778,0.74084,89489.0,89488.0,0.14183]
[1765125720970,0.24617596,89489.0,89488.0,0.14183]
[1765125721379,0.25734956,89489.0,89488.0,0.14183]
[1765125721577,0.24617596,89489.0,89488.0,0.14183]
[1765125723280,0.02617596,89489.0,89488.0,0.14183]
[1765125723481,0.001,89489.0,89488.0,0.14183]
[1765125724977,0.00016762,89492.0,89491.0,0.10843]
[1765125726183,0.00116762,89492.0,89491.0,0.10843]
[1765125726384,0.0262915,89492.0,89491.0,0.10843]
[1765125728985,0.0252915,89492.0,89491.0,0.10843]
[1765125729187,0.0262915,89492.0,89491.0,0.10843]
[1765125729379,0.00116762,89492.0,89491.0,0.10843]
[1765125729990,0.0262842,89492.0,89491.0,0.10843]
[1765125730480,0.2462842,89492.0,89491.0,0.10843]
[1765125730875,0.0262842,89492.0,89491.0,0.11243]
[1765125731486,0.0262842,89492.0,89491.0,0.11443]
[1765125732076,0.0252842,89492.0,89491.0,0.11443]
[1765125732385,0.0252842,89492.0,89491.0,0.11543]
[1765125732985,0.0252842,89492.0,89491.0,0.11043]
[1765125733188,0.0252842,89492.0,89491.0,0.11843]
[1765125735088,0.0252842,89492.0,89491.0,0.11643]
[1765125735287,0.0252842,89492.0,89491.0,0.11843]
[1765125735889,0.0364574,89492.0,89491.0,0.11643]
[1765125736086,0.0364574,89492.0,89491.0,0.11843]
[1765125736590,0.0364574,89492.0,89491.0,0.11043]
[1765125736789,0.0364574,89492.0,89491.0,0.11843]
[1765125737285,0.2564574,89492.0,89491.0,0.11843]
[1765125737786,0.6172574,89492.0,89491.0,0.11843]
[1765125738384,0.6172574,89492.0,89491.0,0.01]
[1765125739088,0.67749852,89492.0,89491.0,0.01]
[1765125739491,0.67749852,89492.0,89491.0,0.009]
[1765125739687,0.67749852,89492.0,89491.0,0.007]
[1765125740692,0.67749852,89492.0,89491.0,0.001]
[1765125740891,0.67749852,89492.0,89491.0,0.007]
[1765125741992,0.67749852,89492.0,89491.0,0.10694]
[1765125742588,0.6172574,89492.0,89491.0,0.10694]
[1765125744684,0.9780574,89492.0,89491.0,0.10694]
[1765125745692,0.9780574,89492.0,89491.0,0.10794]
[1765125757200,0.7580574,89492.0,89491.0,0.10794]
[1765125759606,0.73294082,89492.0,89491.0,0.10794]
[1765125759808,0.75829278,89492.0,89491.0,0.10794]
[1765125760604,0.74711958,89492.0,89491.0,0.10794]
[1765125760995,0.75829278,89492.0,89491.0,0.10794]
[1765125761605,0.74711958,89492.0,89491.0,0.10794]
[1765125762296,0.02551958,89492.0,89491.0,0.10794]
[1765125762900,0.3608,89505.0,89491.0,0.398]
[1765125763101,0.3608,89505.0,89504.0,0.1065117]
[1765125763308,0.38614813,89505.0,89504.0,0.1065117]
[1765125764106,0.38714813,89505.0,89504.0,0.1065117]
[1765125764304,0.3618,89505.0,89504.0,0.1065117]
[1765125766005,0.3618,89505.0,89504.0,0.09534]
[1765125766200,0.3618,89505.0,89504.0,0.09634]
[1765125767308,0.60618697,89505.0,89504.0,0.09634]
[1765125767510,0.60618697,89505.0,89504.0,0.09734]
[1765125768309,0.60618697,89505.0,89504.0,0.10334]
[1765125771911,0.60618697,89505.0,89504.0,0.10134]
[1765125772111,0.60618697,89505.0,89504.0,0.10334]
[1765125772800,0.60618697,89505.0,89504.0,0.10434]
[1765125778413,0.60618697,89505.0,89504.0,0.009]
[1765125778715,0.60618697,89505.0,89504.0,0.09129]
[1765125779417,0.38618697,89505.0,89504.0,0.09129]
[1765125779916,0.02538697,89505.0,89504.0,0.09129]
[1765125780218,0.02538697,89505.0,89504.0,0.49129]
[1765125780405,0.3608,89511.0,89510.0,0.08229]
[1765125780610,0.3608,89511.0,89510.0,0.093461]
[1765125781413,0.32440236,89511.0,89510.0,0.093461]
[1765125781711,0.32440236,89511.0,89510.0,0.498461]
[1765125781912,0.00016762,89513.0,89512.0,0.08229]
[1765125782106,0.00016762,89513.0,89512.0,0.48229]
[1765125782912,0.011169,89526.0,89523.0,0.0934594]
[1765125783210,0.3608,89529.0,89523.0,0.0934594]
[1765125783611,0.0111686,89530.0,89523.0,0.0934594]
[1765125783814,0.00016762,89532.0,89523.0,0.0934594]
[1765125784211,0.00016762,89532.0,89523.0,0.4634594]
[1765125784813,0.00016762,89532.0,89523.0,0.4734594]
[1765125785014,0.00016762,89532.0,89531.0,0.0934584]
[1765125785315,0.3608,89542.0,89541.0,0.08229]
[1765125785514,0.0111665,89547.0,89546.0,0.08229]
[1765125785714,0.1611665,89547.0,89546.0,0.08229]
[1765125787914,0.1631665,89547.0,89546.0,0.08229]
[1765125788221,0.0131665,89547.0,89546.0,0.08229]
[1765125788915,0.2331665,89547.0,89546.0,0.08229]
[1765125790006,0.222,89547.0,89546.0,0.08229]
[1765125790209,0.002,89547.0,89546.0,0.08229]
[1765125790510,0.222,89547.0,89546.0,0.08229]
[1765125792010,0.0111674,89539.0,89538.0,0.02618752]
[1765125792318,0.03901497,89539.0,89538.0,0.14872752]
[1765125793619,0.03901497,89539.0,89538.0,0.15072752]
[1765125794619,0.02654757,89539.0,89538.0,0.15072752]
[1765125795407,0.02524757,89539.0,89538.0,0.15072752]
[1765125795611,0.42104112,89551.0,89538.0,0.15072752]
[1765125795612,0.02524793,89546.0,89545.0,0.1337066]
[1765125795825,0.43480712,89551.0,89550.0,0.14936]
[1765125796024,0.680054,89551.0,89550.0,0.14936]
[1765125796814,0.61981288,89551.0,89550.0,0.14936]
[1765125797014,0.62281288,89551.0,89550.0,0.14936]
[1765125797712,0.62481288,89551.0,89550.0,0.14936]
[1765125797921,0.61364688,89551.0,89550.0,0.14936]
[1765125798622,0.25284688,89551.0,89550.0,0.14936]
[1765125799518,0.22518486,89551.0,89550.0,0.14936]
[1765125799716,0.03024688,89551.0,89550.0,0.49936]
[1765125799916,0.03154688,89551.0,89550.0,0.51016]
[1765125800427,0.0063,89551.0,89550.0,0.51016]
[1765125800626,0.0076,89551.0,89550.0,0.51016]
[1765125800819,0.0026,89545.0,89544.0,0.08847]
[1765125801016,0.21783914,89545.0,89544.0,0.14936]
[1765125801222,0.21783914,89545.0,89544.0,0.08847]
[1765125801419,0.21783914,89545.0,89544.0,0.02682]
[1765125801620,0.0026,89543.0,89542.0,0.3608]
[1765125801821,0.21783914,89543.0,89542.0,0.3608]
[1765125802027,0.21783914,89543.0,89542.0,0.42245]
[1765125802221,0.27808026,89543.0,89542.0,0.42245]
[1765125803320,0.27908026,89543.0,89542.0,0.48334]
[1765125804033,0.27908026,89543.0,89542.0,0.48434]
[1765125804235,0.21883914,89543.0,89542.0,0.12354]
[1765125804822,0.21883914,89543.0,89542.0,0.001]
[1765125805425,0.0026,89539.0,89538.0,0.00016752]
[1765125805626,0.1926,89539.0,89538.0,0.00016752]
[1765125805831,0.21783914,89539.0,89538.0,0.00016752]
[1765125806741,0.21783914,89539.0,89538.0,0.00216752]
[1765125807629,0.0026,89527.0,89526.0,0.08847]
[1765125807827,0.03900804,89527.0,89526.0,0.14936]
[1765125808335,0.02523914,89527.0,89526.0,0.14936]
[1765125808532,0.07997806,89533.0,89532.0,0.12254]
[1765125808728,0.00016752,89535.0,89534.0,0.12254]
[1765125809128,0.02546802,89535.0,89534.0,0.12254]
[1765125809928,0.10544608,89535.0,89534.0,0.12254]
[1765125810120,0.10544608,89535.0,89534.0,0.12454]
[1765125810524,0.02546802,89535.0,89534.0,0.12554]
[1765125811339,0.08014558,89535.0,89534.0,0.12554]
[1765125811537,0.10544608,89535.0,89534.0,0.12554]
[1765125811746,0.08014558,89535.0,89534.0,0.12554]
[1765125812039,0.02546802,89535.0,89534.0,0.12554]
[1765125812731,0.08556978,89535.0,89534.0,0.12554]
[1765125814738,0.02676802,89535.0,89534.0,0.12554]
[1765125815839,0.02806802,89535.0,89534.0,0.12554]
[1765125816039,0.03923592,89535.0,89534.0,0.12554]
[1765125817439,0.07412555,89535.0,89534.0,0.12554]
[1765125817634,0.09942605,89535.0,89534.0,0.12554]
[1765125818438,0.09942775,89535.0,89534.0,0.12554]
[1765125818636,0.09948516,89535.0,89534.0,0.12554]
[1765125819044,0.02552543,89535.0,89534.0,0.12554]
[1765125820445,0.02552543,89535.0,89534.0,0.49554]
[1765125820936,0.06020222,89542.0,89541.0,0.12254]
[1765125821144,0.06020222,89545.0,89544.0,0.1605267]
[1765125821339,0.06020222,89546.0,89545.0,0.12254]
[1765125821645,0.06020222,89547.0,89546.0,0.1337065]
[1765125821943,0.15020222,89547.0,89546.0,0.1337065]
[1765125822445,0.17703222,89547.0,89546.0,0.1337065]
[1765125822647,0.09,89547.0,89546.0,0.4945065]
[1765125822940,0.095,89547.0,89546.0,0.4945065]
[1765125824543,0.13042,89547.0,89546.0,0.12254]
[1765125825248,0.11271,89547.0,89546.0,0.12254]
[1765125826446,0.13042,89547.0,89546.0,0.12254]
[1765125827144,0.095,89547.0,89546.0,0.12254]
[1765125827543,0.11271,89547.0,89546.0,0.12254]
[1765125827946,0.095,89547.0,89546.0,0.12254]
[1765125828247,0.11271,89547.0,89546.0,0.12254]
[1765125828450,0.02271,89547.0,89546.0,0.12254]
[1765125829535,0.005,89547.0,89546.0,0.12254]
[1765125829742,0.02271,89547.0,89546.0,0.12254]
[1765125830139,0.23042,89547.0,89546.0,0.12254]
[1765125831046,0.195,89547.0,89546.0,0.12254]
[1765125831350,0.04042,89547.0,89546.0,0.12254]
[1765125832939,0.06576083,89547.0,89546.0,0.12254]
[1765125833349,0.25576083,89547.0,89546.0,0.12254]
[1765125834145,0.03034083,89547.0,89546.0,0.12254]
[1765125834346,0.04805083,89547.0,89546.0,0.12254]
[1765125834539,0.06576083,89547.0,89546.0,0.12254]
[1765125834746,0.03034083,89547.0,89546.0,0.48334]
[1765125836347,0.06576083,89547.0,89546.0,0.48334]
[1765125836547,0.06576083,89547.0,89546.0,0.12254]
[1765125838647,0.26692723,89547.0,89546.0,0.12254]
[1765125840050,0.25576083,89547.0,89546.0,0.12254]
[1765125841656,0.23805083,89547.0,89546.0,0.12254]
[1765125841966,0.22034083,89547.0,89546.0,0.48334]
[1765125842765,0.28692305,89547.0,89546.0,0.48334]
[1765125844458,0.28054305,89547.0,89546.0,0.48334]
[1765125844862,0.06020222,89552.0,89551.0,0.10453]
[1765125845162,0.10974,89553.0,89552.0,0.10453]
[1765125845860,0.22974,89553.0,89552.0,0.10453]
[1765125846066,0.10974,89545.0,89544.0,0.10453]
[1765125846258,0.1209066,89545.0,89544.0,0.10453]
[1765125846564,0.18113583,89545.0,89544.0,0.10453]
[1765125847061,0.18213583,89545.0,89544.0,0.10453]
[1765125847564,0.18213583,89545.0,89538.0,0.03815492]
[1765125847565,0.10974,89539.0,89538.0,0.10469752]
[1765125847859,0.22974,89539.0,89538.0,0.10469752]
[1765125849654,0.22974,89539.0,89538.0,0.10769752]
[1765125850262,0.22974,89539.0,89538.0,0.14142752]
[1765125851259,0.08031723,89545.0,89539.0,0.0111674]
[1765125851465,0.22974,89545.0,89544.0,0.13826]
[1765125852565,0.001,89545.0,89544.0,0.13826]
[1765125852863,0.001,89545.0,89544.0,0.13926]
[1765125853062,0.11762,89551.0,89550.0,0.14842]
[1765125854267,0.11962,89551.0,89550.0,0.14842]
[1765125855162,0.12162,89551.0,89550.0,0.14842]
[1765125856871,0.14685177,89551.0,89550.0,0.14842]
[1765125860363,0.14685177,89551.0,89550.0,0.11448]
[1765125860570,0.11762,89545.0,89544.0,0.0698466]
[1765125860775,0.26285177,89545.0,89544.0,0.1256466]
[1765125861363,0.1287871,89541.0,89540.0,0.47528]
[1765125861569,0.11762,89539.0,89538.0,0.05884752]
[1765125861773,0.26285177,89539.0,89538.0,0.05884752]
[1765125862070,0.26285177,89539.0,89538.0,0.11464752]
[1765125862268,0.26285177,89539.0,89538.0,0.14858752]
[1765125863071,0.26285177,89539.0,89538.0,0.15158752]
[1765125863979,0.08181177,89539.0,89538.0,0.15158752]
[1765125865079,0.02523177,89539.0,89538.0,0.15158752]
[1765125865777,0.14285177,89539.0,89538.0,0.15158752]
[1765125866786,0.62365177,89539.0,89538.0,0.00316752]
[1765125868473,0.62365177,89539.0,89538.0,0.00016752]
[1765125868682,0.62365177,89539.0,89538.0,0.00316752]
[1765125876491,0.62365177,89539.0,89538.0,0.06184752]
[1765125878087,0.0111675,89538.0,89529.0,0.11448]
[1765125878290,0.11762,89521.0,89520.0,0.24468096]
[1765125878481,0.11762,89521.0,89520.0,0.1595897]
[1765125878683,0.14281151,89521.0,89520.0,0.1256497]
[1765125879197,0.14281151,89521.0,89520.0,0.1595897]
[1765125880392,0.11762,89521.0,89520.0,0.1595897]
[1765125880889,0.11762,89521.0,89520.0,0.1615897]
[1765125881487,0.11762,89521.0,89520.0,0.1665897]
[1765125882093,0.11762,89521.0,89520.0,0.15542]
[1765125882287,0.26278194,89521.0,89520.0,0.11648]
[1765125882593,0.2627803,89521.0,89520.0,0.12111]
[1765125884091,0.2627803,89521.0,89520.0,0.11911]
[1765125884286,0.2627803,89521.0,89520.0,0.12111]
[1765125884487,0.2627803,89521.0,89520.0,0.12011]
[1765125885686,0.2627803,89521.0,89520.0,0.1678697]
[1765125886991,0.2627803,89521.0,89520.0,0.1628697]
[1765125887187,0.2627803,89521.0,89520.0,0.1678697]
[1765125888102,0.2627803,89521.0,89520.0,0.1628697]
[1765125888283,0.2627803,89521.0,89520.0,0.1688697]
[1765125894796,0.2627803,89521.0,89520.0,0.1577]
[1765125896698,0.2627803,89521.0,89520.0,0.1517]
[1765125897004,0.2627803,89521.0,89520.0,0.1567]
[1765125897890,0.2627803,89521.0,89520.0,0.1577]
[1765125899702,0.2627803,89521.0,89520.0,0.1567]
[1765125900102,0.2627803,89521.0,89520.0,0.1517]
[1765125900302,0.2627803,89521.0,89520.0,0.1567]
[1765125900697,0.2627803,89521.0,89520.0,0.1517]
[1765125900898,0.2627803,89521.0,89520.0,0.1577]
[1765125901396,0.2627803,89521.0,89520.0,0.1557]
[1765125901604,0.2627803,89521.0,89520.0,0.1577]
[1765125902105,0.2627803,89521.0,89520.0,0.008]
[1765125902608,0.1142406,89513.0,89512.0,0.05099752]
[1765125902902,0.6202009,89513.0,89512.0,0.05099752]
[1765125903104,0.6202009,89513.0,89512.0,0.00016752]
[1765125903295,0.1142416,89505.0,89504.0,0.10294]
[1765125903499,0.2594019,89505.0,89504.0,0.10294]
[1765125905008,0.0783903,89505.0,89504.0,0.10294]
[1765125905207,0.0251603,89505.0,89504.0,0.10294]
[1765125905507,0.12827903,89512.0,89511.0,0.10294]
[1765125905696,0.23827903,89512.0,89511.0,0.10294]
[1765125905899,0.13520903,89512.0,89511.0,0.10294]
[1765125906109,0.02520903,89512.0,89511.0,0.10294]
[1765125906402,0.12827903,89512.0,89511.0,0.10294]
[1765125906610,0.1142416,89505.0,89504.0,0.10394]
[1765125906907,0.25945063,89505.0,89504.0,0.10394]
[1765125907493,0.25945063,89505.0,89504.0,0.10294]
[1765125908696,0.25945063,89505.0,89504.0,0.1151117]
[1765125909204,0.12827903,89505.0,89504.0,0.1151117]
[1765125909407,0.13127903,89505.0,89504.0,0.1151117]
[1765125913007,0.13127903,89505.0,89504.0,0.10394]
[1765125915110,0.14245063,89505.0,89504.0,0.10394]
[1765125916911,0.13127903,89505.0,89504.0,0.10394]
[1765125918016,0.14245063,89505.0,89504.0,0.10394]
[1765125918698,0.14245063,89505.0,89504.0,0.13425]
[1765125921519,0.26245063,89505.0,89504.0,0.13425]
[1765125922215,0.13127903,89505.0,89504.0,0.13425]
[1765125922416,0.02520903,89505.0,89504.0,0.13425]
[1765125922620,0.1115306,89514.0,89513.0,0.09764]
[1765125922814,0.19517195,89514.0,89513.0,0.09764]
[1765125923209,0.19517195,89514.0,89513.0,0.51764]
[1765125923210,0.02541195,89514.0,89513.0,0.51764]
[1765125923413,0.10036,89524.0,89520.0,0.03031]
[1765125923715,0.10036,89524.0,89523.0,0.09764]
[1765125923919,0.1257771,89524.0,89523.0,0.09764]
[1765125926121,0.1257771,89524.0,89523.0,0.09964]
[1765125927230,0.1257771,89524.0,89523.0,0.09864]
[1765125928235,0.1267771,89524.0,89523.0,0.09864]
[1765125928733,0.1277771,89524.0,89523.0,0.09864]
[1765125929323,0.1277771,89524.0,89523.0,0.09764]
[1765125929734,0.1257771,89524.0,89523.0,0.09764]
[1765125929923,0.1327771,89524.0,89523.0,0.09864]
[1765125930126,0.1337771,89524.0,89523.0,0.09864]
[1765125931130,0.1337771,89524.0,89523.0,0.09764]
[1765125931338,0.1337771,89524.0,89523.0,0.09864]
[1765125931932,0.2537771,89524.0,89523.0,0.09864]
[1765125932336,0.2467771,89524.0,89523.0,0.09764]
[1765125932636,0.2547771,89524.0,89523.0,0.09864]
[1765125932837,0.2537771,89524.0,89523.0,0.09864]
[1765125933032,0.2537771,89524.0,89523.0,0.001]
[1765125933732,0.2537771,89524.0,89523.0,0.09864]
[1765125933928,0.2457771,89524.0,89523.0,0.09864]
[1765125934134,0.2497771,89524.0,89523.0,0.09864]
[1765125934541,0.2457771,89524.0,89523.0,0.09864]
[1765125935329,0.2457771,89524.0,89523.0,0.09964]
[1765125936542,0.2457771,89524.0,89523.0,0.04942]
[1765125936739,0.2457771,89524.0,89523.0,0.002]
[1765125936740,0.6065771,89524.0,89523.0,0.002]
[1765125936940,0.1115302,89516.0,89515.0,0.00016752]
[1765125937248,0.6177473,89516.0,89515.0,0.00016752]
[1765125939248,0.6177473,89516.0,89515.0,0.00216752]
[1765125940545,0.6177473,89516.0,89515.0,0.00416752]
[1765125943342,0.5923302,89516.0,89515.0,0.00416752]
[1765125943540,0.61771242,89516.0,89515.0,0.00416752]
[1765125944439,0.61771242,89516.0,89515.0,0.09183752]
[1765125953043,0.62662242,89516.0,89515.0,0.00416752]
[1765125953853,0.61771242,89516.0,89515.0,0.04815752]
[1765125954349,0.61771242,89516.0,89515.0,0.09183752]
[1765125955051,0.61771242,89516.0,89515.0,0.04815752]
[1765125955255,0.61771242,89516.0,89515.0,0.09183752]
[1765125956056,0.63459242,89516.0,89515.0,0.00416752]
[1765125957362,0.63465076,89516.0,89515.0,0.00416752]
[1765125958156,0.61777076,89516.0,89515.0,0.00416752]
[1765125959552,1.13701076,89516.0,89515.0,0.00416752]
[1765125961159,1.13701076,89516.0,89515.0,0.04737752]
[1765125961357,1.13701076,89516.0,89515.0,0.08760752]
[1765125962253,0.61777076,89516.0,89515.0,0.08760752]
[1765125962456,1.13701076,89516.0,89515.0,0.08760752]
[1765125962761,0.61777076,89516.0,89515.0,0.08760752]
[1765125962952,1.13701076,89516.0,89515.0,0.08760752]
[1765125963647,0.61777076,89516.0,89515.0,0.08760752]
[1765125963850,0.25697076,89516.0,89515.0,0.08760752]
[1765125965656,0.24580056,89516.0,89515.0,0.09877792]
[1765125965862,0.12580056,89516.0,89515.0,0.09877792]
[1765125966656,0.02544056,89516.0,89515.0,0.09877792]
[1765125966861,0.06844056,89516.0,89515.0,0.09877792]
[1765125967163,0.10842056,89516.0,89515.0,0.09877792]
[1765125967355,0.22842056,89516.0,89515.0,0.08760752]
[1765125969760,0.22842056,89516.0,89515.0,0.00416752]
[1765125970364,0.22842056,89516.0,89515.0,0.04737752]
[1765125971060,0.06844056,89516.0,89515.0,0.09877792]
[1765125971359,0.10842056,89516.0,89515.0,0.09877792]
[1765125983368,0.22842056,89516.0,89515.0,0.08760752]
[1765125983571,0.22842056,89516.0,89515.0,0.09877792]
[1765125985164,0.22842056,89516.0,89515.0,0.08760752]
[1765125999884,0.22842056,89516.0,89515.0,0.00416752]
[1765126000681,0.22842056,89516.0,89515.0,0.08577752]
[1765126000891,0.10842056,89516.0,89515.0,0.09694792]
[1765126001278,0.22842056,89516.0,89515.0,0.09694792]
[1765126002692,0.22842056,89516.0,89515.0,0.08577752]
[1765126005596,0.22845834,89516.0,89515.0,0.08577752]
[1765126007082,0.22845834,89516.0,89515.0,0.09694792]
[1765126007791,0.22845834,89516.0,89515.0,0.08577752]
[1765126008291,0.22845834,89516.0,89515.0,0.04570752]
[1765126008491,0.22845834,89516.0,89515.0,0.08053752]
[1765126009494,0.22845834,89516.0,89515.0,0.04570752]
[1765126009684,0.22845834,89516.0,89515.0,0.08053752]
[1765126013107,0.22845834,89516.0,89515.0,0.00416752]
[1765126014190,0.22845834,89516.0,89515.0,0.03990752]
[1765126015200,0.22845834,89516.0,89515.0,0.00416752]
[1765126016599,0.22845834,89516.0,89515.0,0.07370752]
[1765126019496,0.02547834,89516.0,89515.0,0.07370752]
[1765126019800,0.02547834,89516.0,89515.0,0.43450752]
[1765126021900,0.02547834,89516.0,89515.0,0.78450752]
[1765126022097,0.02547834,89516.0,89515.0,0.43450752]
[1765126022301,0.08151834,89516.0,89515.0,0.43450752]
[1765126022903,0.02547834,89516.0,89515.0,0.43450752]
[1765126024203,0.05349834,89516.0,89515.0,0.43450752]
[1765126024891,0.08151834,89516.0,89515.0,0.43450752]
[1765126025912,0.02547834,89516.0,89515.0,0.43450752]
[1765126026209,0.05349834,89516.0,89515.0,0.43450752]
[1765126026995,0.02547834,89516.0,89515.0,0.43450752]
[1765126028202,0.08151834,89516.0,89515.0,0.43450752]
[1765126028596,0.20151834,89516.0,89515.0,0.07370752]
[1765126028797,0.20151834,89516.0,89515.0,0.03990752]
[1765126029794,0.20151834,89516.0,89515.0,0.07370752]
[1765126031908,0.20151834,89516.0,89515.0,0.00416752]
[1765126033506,0.20151834,89516.0,89515.0,0.07082752]
[1765126038319,0.20151834,89516.0,89515.0,0.09193752]
[1765126039314,0.56231834,89516.0,89515.0,0.09193752]
[1765126039815,0.20151834,89516.0,89515.0,0.09193752]
[1765126043613,0.20151834,89516.0,89515.0,0.00416752]
[1765126044117,0.26178793,89516.0,89515.0,0.00416752]
[1765126044413,0.20151834,89516.0,89515.0,0.00416752]
[1765126044614,0.0448,89506.0,89505.0,0.09486]
[1765126044814,0.19027834,89506.0,89505.0,0.09486]
[1765126045817,0.19127834,89506.0,89505.0,0.09486]
[1765126046018,0.20844984,89506.0,89505.0,0.09586]
[1765126049217,0.56924984,89506.0,89505.0,0.001]
[1765126049821,0.56924984,89506.0,89505.0,0.03432]
[1765126051118,0.56924984,89506.0,89505.0,0.06766]
[1765126051423,0.56924984,89506.0,89505.0,0.03432]
[1765126052025,0.56924984,89506.0,89505.0,0.001]
[1765126052323,0.56924984,89506.0,89505.0,0.06766]
[1765126054813,0.56924984,89506.0,89505.0,0.001]